fUST/lending_fUST_20250816
["ID","MTS","AMOUNT","RATE_DAILY","PERIOD"]
[379635952,1755351855547,-1268.76223624,0.00021917,3]
[379635953,1755351855557,-480.0,0.00021917,3]
[379635954,1755351855567,-921.81,0.00021917,3]
[379635955,1755351855576,-463.80888188,0.00021917,3]
[379635956,1755351855592,-16.19111812,0.00021917,3]
[379635957,1755351855601,-1445.47,0.00021917,3]
[379635958,1755351855611,-480.0,0.00021917,3]
[379635959,1755351855620,-480.0,0.00021917,3]
[379635960,1755351855629,-480.0,0.00021917,3]
[379635961,1755351855638,-480.0,0.00021917,3]
[379635962,1755351855647,-1618.33888188,0.00021917,3]
[379635963,1755351855675,-1725.71111812,0.00021917,3]
[379635964,1755351855685,-480.0,0.00021917,3]
[379635965,1755351855694,-480.0,0.00021917,3]
[379635966,1755351855703,-480.0,0.00021917,3]
[379635967,1755351855713,-982.23,0.00021917,3]
[379635968,1755351855723,-480.0,0.00021917,3]
[379635969,1755351855732,-372.05888188,0.00021917,3]
[379635970,1755351855783,-198.12111812,0.00021917,3]
[379635971,1755351855814,-480.0,0.00021917,3]
[379635972,1755351855850,-447.3050888,0.00021917,3]
[379635973,1755351855883,-480.0,0.00021917,3]
[379635974,1755351855913,-460.83249565,0.00021917,3]
[379635975,1755351855975,-2933.74129743,0.00021917,3]
[379635976,1755351856016,-2334.44870257,0.00021917,3]
[379635977,1755351856026,-460.51896454,0.00021917,3]
[379635978,1755351856036,-480.0,0.00021917,3]
[379635979,1755351856045,-480.0,0.00021917,3]
[379635980,1755351856055,-499.57,0.00021917,3]
[379635981,1755351856075,-745.46233289,0.00021917,3]
[379635982,1755351856167,-575.61766711,0.00021917,3]
[379635983,1755351856176,-849.82,0.00021917,3]
[379635984,1755351856186,-480.0,0.00021917,3]
[379635985,1755351856196,-480.0,0.00021917,3]
[379635986,1755351856205,-612.20052961,0.00021917,3]
[379635987,1755351856243,-81.69947039,0.00021917,3]
[379635988,1755351856274,-480.0,0.00021917,3]
[379635989,1755351856304,-480.0,0.00021917,3]
[379635990,1755351856335,-480.0,0.00021917,3]
[379635991,1755351856365,-531.57,0.00021917,3]
[379635992,1755351856396,-413.46105922,0.00021917,3]
[379635993,1755351856495,-66.53894078,0.00021917,3]
[379635994,1755351856525,-480.0,0.00021917,3]
[379635995,1755351856554,-480.0,0.00021917,3]
[379635996,1755351856658,-1595.57876741,0.00021917,3]
[379635997,1755351856672,-640.26,0.00021917,3]
[379635998,1755351856687,-34.69147394,0.00021917,3]
[379635999,1755351856702,-34.88778743,0.00021917,3]
[379636000,1755351856717,-480.0,0.00021917,3]
[379636001,1755351856747,-480.0,0.00021917,3]
[379636002,1755351856762,-480.0,0.00021917,3]
[379636003,1755351856777,-2050.22442514,0.00021917,3]
[379636004,1755351856936,-554.04778743,0.00021917,3]
[379636005,1755351857137,-585.33,0.00021917,3]
[379636006,1755351857152,-248.77975865,0.00021917,3]
[379636007,1755351857162,-937.76024135,0.00021917,3]
[379636008,1755351857183,-348.16442514,0.00021917,3]
[379636009,1755351857197,-293.19778743,0.00021917,3]
[379636010,1755351857217,-480.0,0.00021917,3]
[379636011,1755351857238,-480.0,0.00021917,3]
[379636012,1755351857253,-1147.34754608,0.00021917,3]
[379636013,1755351857262,-480.0,0.00021917,3]
[379636014,1755351857272,-480.0,0.00021917,3]
[379636015,1755351857281,-386.25687906,0.00021917,3]
[379636016,1755351857301,-93.74312094,0.00021917,3]
[379636017,1755351857310,-480.0,0.00021917,3]
[379636018,1755351857319,-480.0,0.00021917,3]
[379636019,1755351857329,-1195.8,0.00021917,3]
[379636020,1755351857338,-480.0,0.00021917,3]
[379636021,1755351857347,-221.78482819,0.00021917,3]
[379636022,1755351857357,-480.0,0.00021917,3]
[379636023,1755351857366,-480.0,0.00021917,3]
[379636024,1755351857375,-480.0,0.00021917,3]
[379636025,1755351857385,-608.67205087,0.00021917,3]
[379636026,1755351857401,-1206.08794913,0.00021917,3]
[379636027,1755351857411,-480.0,0.00021917,3]
[379636028,1755351857421,-480.0,0.00021917,3]
[379636029,1755351857430,-480.0,0.00021917,3]
[379636030,1755351857440,-2353.91205087,0.00021917,3]
[379636031,1755351857460,-76.41794913,0.00021917,3]
[379636032,1755351857470,-480.0,0.00021917,3]
[379636033,1755351857479,-480.0,0.00021917,3]
[379636034,1755351857488,-158.15447284,0.00021917,3]
[379636035,1755351857497,-480.0,0.00021917,3]
[379636036,1755351857507,-1615.64,0.00021917,3]
[379636037,1755351857517,-507.16,0.00021917,3]
[379636038,1755351857526,-480.0,0.00021917,3]
[379636039,1755351857535,-480.0,0.00021917,3]
[379636040,1755351857545,-242.62757803,0.00021917,3]
[379636041,1755351857561,-237.37242197,0.00021917,3]
[379636042,1755351857570,-480.0,0.00021917,3]
[379636043,1755351857579,-480.0,0.00021917,3]
[379636044,1755351857588,-460.0,0.00021917,3]
[379636045,1755351857597,-480.0,0.00021917,3]
[379636046,1755351857606,-480.0,0.00021917,3]
[379636047,1755351857616,-480.0,0.00021917,3]
[379636048,1755351857625,-37.00869615,0.00021917,3]
[379636049,1755351857640,-198.12111812,0.00021917,3]
[379636050,1755351857655,-244.87018573,0.00021917,3]
[379636051,1755351857664,-235.12981427,0.00021917,3]
[379636052,1755351857679,-244.87018573,0.00021917,3]
[379636053,1755351857690,-202.43490307,0.00021917,3]
[379636054,1755351857705,-277.56509693,0.00021917,3]
[379636055,1755351857714,-202.43490307,0.00021917,3]
[379636056,1755351857728,-277.56509693,0.00021917,3]
[379636057,1755351857737,-183.26739872,0.00021917,3]
[379636058,1755351857752,-296.73260128,0.00021917,3]
[379636059,1755351857760,-467.46366629,0.00021917,3]
[379636060,1755351857770,-103.28632729,0.00021917,3]
[379636061,1755351857796,-81.69947039,0.00021917,3]
[379636062,1755351857811,-295.01420232,0.00021917,3]
[379636063,1755351857820,-184.98579768,0.00021917,3]
[379636064,1755351857839,-295.01420232,0.00021917,3]
[379636065,1755351857848,-184.98579768,0.00021917,3]
[379636066,1755351857864,-295.01420232,0.00021917,3]
[379636067,1755351857875,-184.98579768,0.00021917,3]
[379636068,1755351857890,-295.01420232,0.00021917,3]
[379636069,1755351857900,-236.55579768,0.00021917,3]
[379636070,1755351857915,-243.44420232,0.00021917,3]
[379636071,1755351857925,-236.55579768,0.00021917,3]
[379636072,1755351857940,-66.53894078,0.00021917,3]
[379636073,1755351857955,-480.0,0.00021917,3]
[379636074,1755351857970,-15.33526154,0.00021917,3]
[379636075,1755351857979,-464.66473846,0.00021917,3]
[379636076,1755351857994,-15.33526154,0.00021917,3]
[379636077,1755351858003,-1417.57,0.00021917,3]
[379636078,1755351858012,-480.0,0.00021917,3]
[379636079,1755351858021,-578.5,0.00021917,3]
[379636080,1755351858031,-455.5168569,0.00021917,3]
[379636081,1755351868490,2899.67115344,0.00021717,2]
[379636082,1755351868516,5000.0,0.00021717,2]
[379636083,1755351868540,5000.0,0.00021717,2]
[379636084,1755351868565,5000.0,0.00021717,2]
[379636085,1755351868589,5000.0,0.00021717,2]
[379636086,1755351868613,5000.0,0.00021717,2]
[379636087,1755351868638,5000.0,0.00021717,2]
[379636088,1755351868662,5000.0,0.00021717,2]
[379636089,1755351868687,5000.0,0.00021717,2]
[379636090,1755351868711,5000.0,0.00021717,2]
[379636091,1755351868736,5000.0,0.00021717,2]
[379636092,1755351868760,5000.0,0.00021717,2]
[379636093,1755351868784,5000.0,0.00021717,2]
[379636094,1755351868808,5000.0,0.00021717,2]
[379636095,1755351868837,5000.0,0.00021717,2]
[379636096,1755351868862,5000.0,0.00021717,2]
[379636097,1755351869042,5000.0,0.00021717,2]
[379636098,1755351869069,5000.0,0.00021717,2]
[379636099,1755351869094,5000.0,0.00021717,2]
[379636100,1755351869118,5000.0,0.00021717,2]
[379636101,1755351869142,5000.0,0.00021717,2]
[379636102,1755351869166,5000.0,0.00021717,2]
[379636103,1755351869190,5000.0,0.00021717,2]
[379636104,1755351869215,5000.0,0.00021717,2]
[379636105,1755351869241,5000.0,0.00021717,2]
[379636106,1755351869264,5000.0,0.00021717,2]
[379636107,1755351869291,5000.0,0.00021717,2]
[379636108,1755351869314,5000.0,0.00021717,2]
[379636109,1755351878415,500.0,0.00020273,2]
[379636110,1755351879021,1092.54295087,0.00020805,2]
[379636111,1755351879054,5000.0,0.00020805,2]
[379636112,1755351879090,2236.17940571,0.00020805,2]
[379636113,1755351883953,801.42157026,0.000199,2]
[379636114,1755351884040,801.42157013,0.00020408,2]
[379636115,1755351978293,674.161709,0.00013699,2]
[379636116,1755351978510,486.8157449,0.00020187,2]
[379636117,1755351978536,187.3459641,0.00020187,2]
[379636119,1755352054993,747.99346559,0.000199,2]
[379636121,1755352228612,723.06035008,0.000199,2]
[379636163,1755352232066,-416.64554105,0.00020408,2]
[379636165,1755352232078,-306.41480888,0.00020408,2]
[379636167,1755352232087,-150.06479754,0.00020721,2]
[379636169,1755352232098,-4849.93520246,0.00020721,2]
[379636171,1755352232108,-723.06034993,0.00020916,2]
[379636173,1755352232118,-464.9,0.0002093,2]
[379636175,1755352232127,-500.0,0.00021369,2]
[379636177,1755352232137,-506.0,0.00021423,2]
[379636179,1755352232148,-723.06034993,0.00021424,2]
[379636181,1755352232158,-203.27996803,0.00021617,2]
[379636183,1755352232167,-2093.36549538,0.00021663,2]
[379636185,1755352232176,-160.7608968,0.000217,2]
[379636187,1755352232185,-600.0,0.000217,2]
[379636189,1755352232195,-300.0,0.00021705,2]
[379636192,1755352232204,-526.1,0.00021707,3]
[379636193,1755352232213,-263.05,0.00021707,3]
[379636196,1755352232222,-789.15,0.00021707,3]
[379636199,1755352232232,-619.5,0.00021715,3]
[379636202,1755352232248,-31632.54680047,0.00021717,2]
[379636207,1755352232263,-7427.38074131,0.00021717,2]
[379636210,1755352232274,-4601.22235098,0.00021717,2]
[379636213,1755352232285,-3263.38771072,0.00021717,2]
[379636218,1755352232306,-1423.57779886,0.00021717,2]
[379636221,1755352232316,-2291.30028,0.00021717,2]
[379636364,1755352238065,-199.24,0.00021566,30]
[379636365,1755352238076,-181460.91316422,0.00021717,2]
[379636366,1755352238085,-153.05430132,0.00021763,2]
[379636367,1755352238094,-215.68093138,0.00021863,2]
[379636368,1755352238103,-160.7608968,0.00021863,2]
[379636369,1755352238112,-160.7608968,0.000219,2]
[379636371,1755352238121,-160.7608968,0.000219,2]
[379636372,1755352238130,-160.7608968,0.000219,2]
[379636373,1755352238138,-5.93710487,0.00021917,3]
[379636374,1755352238147,-460.0,0.00021917,3]
[379636376,1755352238156,-480.0,0.00021917,2]
[379636377,1755352238166,-636.1,0.00021917,3]
[379636378,1755352238176,-480.0,0.00021917,3]
[379636379,1755352238185,-480.0,0.00021917,3]
[379636380,1755352238195,-480.0,0.00021917,3]
[379636381,1755352238204,-480.0,0.00021917,3]
[379636382,1755352238213,-480.0,0.00021917,3]
[379636383,1755352238222,-480.0,0.00021917,3]
[379636384,1755352238232,-480.0,0.00021917,3]
[379636385,1755352238241,-480.0,0.00021917,3]
[379636386,1755352238250,-480.0,0.00021917,3]
[379636387,1755352238259,-480.0,0.00021917,3]
[379636388,1755352238269,-1499.79,0.00021917,3]
[379636389,1755352238278,-480.0,0.00021917,3]
[379636390,1755352238288,-480.0,0.00021917,3]
[379636391,1755352238298,-440.0,0.00021917,3]
[379636392,1755352238307,-480.0,0.00021917,3]
[379636393,1755352238316,-480.0,0.00021917,3]
[379636394,1755352238326,-2424.72,0.00021917,3]
[379636395,1755352238335,-706.48,0.00021917,3]
[379636396,1755352238345,-480.0,0.00021917,3]
[379636397,1755352238355,-460.0,0.00021917,3]
[379636398,1755352238364,-480.0,0.00021917,3]
[379636399,1755352238373,-480.0,0.00021917,3]
[379636400,1755352238383,-480.0,0.00021917,3]
[379636401,1755352238392,-969.45,0.00021917,3]
[379636402,1755352238401,-480.0,0.00021917,2]
[379636403,1755352238411,-480.0,0.00021917,3]
[379636404,1755352238420,-480.0,0.00021917,3]
[379636405,1755352238429,-1167.43,0.00021917,3]
[379636406,1755352238438,-480.0,0.00021917,3]
[379636407,1755352238447,-480.0,0.00021917,3]
[379636408,1755352238456,-480.0,0.00021917,3]
[379636409,1755352238465,-480.0,0.00021917,3]
[379636411,1755352238475,-460.0,0.00021917,3]
[379636413,1755352238484,-480.0,0.00021917,3]
[379636414,1755352238493,-480.0,0.00021917,3]
[379636416,1755352238502,-715.79,0.00021917,3]
[379636418,1755352238511,-480.0,0.00021917,3]
[379636420,1755352238520,-480.0,0.00021917,3]
[379636422,1755352238530,-480.0,0.00021917,3]
[379636424,1755352238539,-460.0,0.00021917,3]
[379636426,1755352238550,-480.0,0.00021917,3]
[379636428,1755352238559,-480.0,0.00021917,3]
[379636430,1755352238570,-480.0,0.00021917,3]
[379636432,1755352238599,-480.0,0.00021917,3]
[379636434,1755352238630,-619.81,0.00021917,3]
[379636436,1755352238640,-480.0,0.00021917,3]
[379636438,1755352238650,-480.0,0.00021917,3]
[379636440,1755352238659,-697.4,0.00021917,3]
[379636442,1755352238670,-480.0,0.00021917,3]
[379636444,1755352238679,-428.30336908,0.00021917,3]
[379636446,1755352238689,-480.0,0.00021917,3]
[379636448,1755352238697,-480.0,0.00021917,3]
[379636450,1755352238707,-480.0,0.00021917,3]
[379636452,1755352238716,-460.0,0.00021917,3]
[379636454,1755352238725,-480.0,0.00021917,3]
[379636456,1755352238734,-480.0,0.00021917,3]
[379636458,1755352238743,-1647.04,0.00021917,3]
[379636460,1755352238752,-480.0,0.00021917,3]
[379636461,1755352238760,-460.0,0.00021917,3]
[379636464,1755352238770,-462.1417622,0.00021917,3]
[379636465,1755352238779,-480.0,0.00021917,3]
[379636467,1755352238788,-460.0,0.00021917,3]
[379636469,1755352238798,-480.0,0.00021917,3]
[379636471,1755352238807,-480.0,0.00021917,3]
[379636473,1755352238816,-1110.7,0.00021917,3]
[379636475,1755352238826,-460.61713777,0.00021917,3]
[379636477,1755352238834,-480.0,0.00021917,3]
[379636479,1755352238844,-480.0,0.00021917,3]
[379636481,1755352238853,-431.99216029,0.00021917,3]
[379636483,1755352238863,-1308.22,0.00021917,3]
[379636485,1755352238872,-480.0,0.00021917,3]
[379636487,1755352238881,-480.0,0.00021917,3]
[379636489,1755352238890,-480.0,0.00021917,3]
[379636491,1755352238901,-480.0,0.00021917,3]
[379636493,1755352238910,-979.82,0.00021917,3]
[379636495,1755352238919,-480.0,0.00021917,3]
[379636497,1755352238928,-480.0,0.00021917,3]
[379636499,1755352238938,-480.0,0.00021917,3]
[379636501,1755352238946,-480.0,0.00021917,3]
[379636503,1755352238955,-460.59846875,0.00021917,3]
[379636505,1755352238964,-480.0,0.00021917,3]
[379636507,1755352238974,-480.0,0.00021917,3]
[379636509,1755352238983,-480.0,0.00021917,3]
[379636511,1755352238992,-480.0,0.00021917,3]
[379636513,1755352239002,-468.21008992,0.00021917,3]
[379636515,1755352239012,-480.0,0.00021917,3]
[379636517,1755352239021,-524.58734692,0.00021917,3]
[379636518,1755352239030,-480.0,0.00021917,3]
[379636519,1755352239039,-460.0,0.00021917,3]
[379636520,1755352239050,-1301.55,0.00021917,3]
[379636521,1755352239068,-480.0,0.00021917,3]
[379636522,1755352239088,-480.0,0.00021917,3]
[379636523,1755352239109,-480.0,0.00021917,3]
[379636524,1755352239130,-480.0,0.00021917,3]
[379636525,1755352239141,-480.0,0.00021917,3]
[379636526,1755352239150,-463.97386721,0.00021917,3]
[379636527,1755352239160,-981.79,0.00021917,3]
[379636528,1755352239169,-480.0,0.00021917,3]
[379636529,1755352239178,-388.54820801,0.00021917,3]
[379636530,1755352239187,-445.39178733,0.00021917,3]
[379636531,1755352239196,-3256.97,0.00021917,3]
[379636532,1755352239205,-480.0,0.00021917,3]
[379636533,1755352239215,-480.0,0.00021917,3]
[379636534,1755352239224,-480.0,0.00021917,3]
[379636536,1755352239234,-220.33690052,0.00021917,3]
[379636538,1755352239243,-462.2422269,0.00021917,3]
[379636540,1755352239252,-574.94,0.00021917,3]
[379636542,1755352239261,-480.0,0.00021917,3]
[379636544,1755352239270,-460.0,0.00021917,3]
[379636546,1755352239279,-460.0,0.00021917,3]
[379636548,1755352239288,-1756.76,0.00021917,3]
[379636550,1755352239297,-480.0,0.00021917,3]
[379636552,1755352239306,-480.0,0.00021917,3]
[379636554,1755352239315,-1379.05,0.00021917,3]
[379636556,1755352239324,-1581.17,0.00021917,3]
[379636558,1755352239333,-420.0,0.00021917,3]
[379636560,1755352239343,-810.07,0.00021917,3]
[379636562,1755352239352,-480.0,0.00021917,3]
[379636564,1755352239361,-480.0,0.00021917,3]
[379636566,1755352239371,-480.0,0.00021917,3]
[379636568,1755352239380,-461.63524623,0.00021917,3]
[379636570,1755352239389,-480.0,0.00021917,3]
[379636572,1755352239398,-480.0,0.00021917,3]
[379636574,1755352239407,-480.0,0.00021917,3]
[379636575,1755352239417,-480.0,0.00021917,3]
[379636577,1755352239426,-582.93,0.00021917,3]
[379636579,1755352239436,-480.0,0.00021917,3]
[379636582,1755352239445,-460.0,0.00021917,3]
[379636584,1755352239455,-480.0,0.00021917,3]
[379636586,1755352239465,-909.42,0.00021917,3]
[379636588,1755352239474,-500.0,0.00021917,3]
[379636590,1755352239484,-500.0,0.00021917,3]
[379636592,1755352239493,-480.0,0.00021917,3]
[379636593,1755352239504,-480.0,0.00021917,3]
[379636595,1755352239513,-453.43611507,0.00021917,3]
[379636597,1755352239523,-480.0,0.00021917,3]
[379636599,1755352239532,-480.0,0.00021917,3]
[379636602,1755352239542,-480.0,0.00021917,3]
[379636605,1755352239552,-480.0,0.00021917,3]
[379636608,1755352239562,-480.0,0.00021917,3]
[379636611,1755352239571,-1237.01,0.00021917,3]
[379636615,1755352239580,-440.0,0.00021917,3]
[379636618,1755352239589,-480.0,0.00021917,3]
[379636621,1755352239599,-721.26,0.00021917,3]
[379636624,1755352239608,-485.15588393,0.00021917,3]
[379636627,1755352239617,-480.0,0.00021917,3]
[379636630,1755352239627,-1181.94,0.00021917,3]
[379636633,1755352239636,-480.0,0.00021917,3]
[379636636,1755352239645,-522.50943268,0.00021917,3]
[379636639,1755352239654,-480.0,0.00021917,3]
[379636642,1755352239664,-480.0,0.00021917,3]
[379636645,1755352239673,-460.0,0.00021917,3]
[379636648,1755352239682,-480.0,0.00021917,3]
[379636651,1755352239691,-460.0,0.00021917,3]
[379636653,1755352239700,-480.0,0.00021917,3]
[379636656,1755352239709,-480.0,0.00021917,3]
[379636660,1755352239719,-480.0,0.00021917,3]
[379636663,1755352239728,-480.0,0.00021917,3]
[379636666,1755352239737,-480.0,0.00021917,3]
[379636668,1755352239746,-492.74,0.00021917,3]
[379636672,1755352239755,-799.6,0.00021917,3]
[379636675,1755352239765,-480.0,0.00021917,3]
[379636678,1755352239774,-480.0,0.00021917,3]
[379636680,1755352239783,-460.0,0.00021917,3]
[379636682,1755352239792,-480.0,0.00021917,3]
[379636686,1755352239801,-480.0,0.00021917,3]
[379636689,1755352239811,-460.0,0.00021917,3]
[379636692,1755352239820,-480.0,0.00021917,3]
[379636695,1755352239830,-480.0,0.00021917,3]
[379636697,1755352239839,-480.0,0.00021917,3]
[379636700,1755352239849,-1354.35,0.00021917,3]
[379636703,1755352239858,-480.0,0.00021917,3]
[379636706,1755352239867,-557.09,0.00021917,3]
[379636709,1755352239876,-480.0,0.00021917,3]
[379636713,1755352239885,-642.42,0.00021917,3]
[379636715,1755352239894,-480.0,0.00021917,3]
[379636719,1755352239904,-480.0,0.00021917,3]
[379636720,1755352239913,-562.5,0.00021917,3]
[379636723,1755352239923,-480.0,0.00021917,3]
[379636724,1755352239932,-480.0,0.00021917,3]
[379636726,1755352239941,-480.0,0.00021917,3]
[379636728,1755352239950,-2652.79,0.00021917,3]
[379636730,1755352239960,-1078.6,0.00021917,3]
[379636732,1755352239969,-480.0,0.00021917,3]
[379636734,1755352239979,-480.0,0.00021917,3]
[379636736,1755352239988,-480.0,0.00021917,3]
[379636738,1755352239997,-480.0,0.00021917,3]
[379636740,1755352240007,-480.0,0.00021917,3]
[379636742,1755352240016,-467.0178547,0.00021917,3]
[379636744,1755352240025,-1761.96,0.00021917,3]
[379636746,1755352240035,-480.0,0.00021917,3]
[379636748,1755352240044,-2554.77,0.00021917,3]
[379636750,1755352240053,-480.0,0.00021917,3]
[379636752,1755352240065,-1101.72,0.00021917,3]
[379636754,1755352240075,-480.0,0.00021917,3]
[379636756,1755352240085,-480.0,0.00021917,3]
[379636758,1755352240094,-1349.14,0.00021917,3]
[379636760,1755352240103,-903.4,0.00021917,3]
[379636763,1755352240113,-480.0,0.00021917,3]
[379636766,1755352240123,-505.36,0.00021917,3]
[379636769,1755352240131,-460.0,0.00021917,3]
[379636771,1755352240140,-931.33,0.00021917,3]
[379636773,1755352240150,-480.0,0.00021917,3]
[379636775,1755352240158,-480.0,0.00021917,3]
[379636777,1755352240168,-12175.21,0.00021917,3]
[379636779,1755352240177,-861.03,0.00021917,3]
[379636781,1755352240186,-496.99,0.00021917,3]
[379636783,1755352240195,-480.0,0.00021917,3]
[379636784,1755352240205,-523.34,0.00021917,3]
[379636785,1755352240215,-480.0,0.00021917,3]
[379636787,1755352240224,-480.0,0.00021917,3]
[379636789,1755352240234,-772.33,0.00021917,3]
[379636791,1755352240244,-480.0,0.00021917,3]
[379636793,1755352240254,-480.0,0.00021917,3]
[379636794,1755352240264,-480.0,0.00021917,3]
[379636795,1755352240273,-1362.96,0.00021917,3]
[379636796,1755352240282,-1190.94,0.00021917,3]
[379636798,1755352240291,-480.0,0.00021917,3]
[379636800,1755352240301,-480.0,0.00021917,3]
[379636802,1755352240311,-423.34098548,0.00021917,3]
[379636804,1755352240320,-440.61223397,0.00021917,3]
[379636806,1755352240330,-480.0,0.00021917,3]
[379636808,1755352240340,-5192.27,0.00021917,3]
[379636810,1755352240350,-1436.5,0.00021917,3]
[379636812,1755352240359,-834.41,0.00021917,3]
[379636814,1755352240369,-480.0,0.00021917,3]
[379636816,1755352240378,-911.55,0.00021917,3]
[379636829,1755352240520,-460.0,0.00021917,3]
[379636830,1755352240530,-480.0,0.00021917,3]
[379636831,1755352240540,-480.0,0.00021917,3]
[379636832,1755352240549,-594.67,0.00021917,3]
[379636833,1755352240559,-480.0,0.00021917,3]
[379636834,1755352240568,-480.0,0.00021917,3]
[379636835,1755352240577,-2478.94,0.00021917,3]
[379636836,1755352240586,-480.0,0.00021917,3]
[379636837,1755352240596,-501.71,0.00021917,3]
[379636838,1755352240605,-480.0,0.00021917,3]
[379636839,1755352240614,-460.0,0.00021917,3]
[379636840,1755352240624,-8838.15,0.00021917,3]
[379636841,1755352240634,-509.94,0.00021917,3]
[379636842,1755352240642,-480.0,0.00021917,3]
[379636843,1755352240652,-480.0,0.00021917,3]
[379636844,1755352240661,-480.0,0.00021917,3]
[379636845,1755352240670,-1266.03,0.00021917,3]
[379636846,1755352240679,-480.0,0.00021917,3]
[379636847,1755352240687,-480.0,0.00021917,3]
[379636848,1755352240696,-480.0,0.00021917,3]
[379636849,1755352240705,-480.0,0.00021917,3]
[379636850,1755352240715,-480.0,0.00021917,3]
[379636851,1755352240724,-967.76,0.00021917,3]
[379636852,1755352240734,-3374.56,0.00021917,3]
[379636853,1755352240743,-475.78870885,0.00021917,3]
[379636854,1755352240753,-480.0,0.00021917,3]
[379636855,1755352240762,-460.0,0.00021917,3]
[379636856,1755352240771,-3532.86,0.00021917,3]
[379636857,1755352240780,-480.0,0.00021917,3]
[379636858,1755352240789,-480.0,0.00021917,3]
[379636859,1755352240798,-460.64958244,0.00021917,3]
[379636860,1755352240808,-421.25850553,0.00021917,3]
[379636861,1755352240818,-480.0,0.00021917,3]
[379636862,1755352240827,-480.0,0.00021917,3]
[379636863,1755352240837,-480.0,0.00021917,3]
[379636864,1755352240846,-538.03,0.00021917,3]
[379636865,1755352240856,-480.0,0.00021917,3]
[379636866,1755352240865,-480.0,0.00021917,3]
[379636867,1755352240874,-480.0,0.00021917,3]
[379636868,1755352240884,-480.0,0.00021917,3]
[379636869,1755352240893,-480.0,0.00021917,3]
[379636870,1755352240903,-509.42,0.00021917,3]
[379636871,1755352240912,-480.0,0.00021917,3]
[379636872,1755352240921,-577.92641251,0.00021917,3]
[379636873,1755352240930,-480.0,0.00021917,3]
[379636874,1755352240939,-480.0,0.00021917,3]
[379636875,1755352240949,-440.0,0.00021917,3]
[379636876,1755352240958,-480.0,0.00021917,3]
[379636877,1755352240968,-480.0,0.00021917,3]
[379636878,1755352240977,-480.0,0.00021917,3]
[379636879,1755352240987,-176.5618196,0.00021917,3]
[379636880,1755352240996,-487.20517077,0.00021917,3]
[379636881,1755352241006,-480.0,0.00021917,3]
[379636882,1755352241016,-480.0,0.00021917,3]
[379636883,1755352241026,-930.72,0.00021917,3]
[379636884,1755352241036,-563.57,0.00021917,3]
[379636885,1755352241046,-480.0,0.00021917,3]
[379636886,1755352241057,-833.94,0.00021917,3]
[379636887,1755352241071,-6884.48,0.00021917,3]
[379636888,1755352241083,-480.0,0.00021917,3]
[379636889,1755352241093,-480.0,0.00021917,3]
[379636890,1755352241103,-480.0,0.00021917,3]
[379636891,1755352241113,-480.0,0.00021917,3]
[379636892,1755352241123,-520.88,0.00021917,3]
[379636893,1755352241133,-595.058451,0.00021917,2]
[379636894,1755352241142,-2985.09,0.00021917,3]
[379636895,1755352241155,-1177.01,0.00021917,3]
[379636896,1755352241165,-153.0,0.00021918,2]
[379636897,1755352241175,-153.0,0.00021918,2]